fUST/lending_fUST_20251130
["ID","MTS","AMOUNT","RATE_DAILY","PERIOD"]
[395152539,1764485571186,-500.0,8.04e-05,2]
[395152540,1764485571218,-500.0,8.04e-05,2]
[395152541,1764485571249,-500.0,8.04e-05,2]
[395152542,1764485571282,-500.0,8.04e-05,2]
[395152543,1764485571320,-500.0,8.04e-05,2]
[395152544,1764485571356,-500.0,8.04e-05,2]
[395152545,1764485571387,-500.0,8.04e-05,2]
[395152546,1764485571418,-500.0,8.04e-05,2]
[395152547,1764485571450,-191.36908926,8.04e-05,2]
[395152548,1764485571512,-308.63091074,8.04e-05,2]
[395152549,1764485571546,-500.0,8.04e-05,2]
[395152550,1764485571578,-500.0,8.04e-05,2]
[395152551,1764485571611,-500.0,8.04e-05,2]
[395152552,1764485571643,-500.0,8.04e-05,2]
[395152553,1764485571675,-500.0,8.04e-05,2]
[395152554,1764485571708,-500.0,8.04e-05,2]
[395152555,1764485571743,-500.0,8.04e-05,2]
[395152556,1764485571778,-500.0,8.04e-05,2]
[395152557,1764485571814,-500.0,8.04e-05,2]
[395152558,1764485571883,-500.0,8.04e-05,2]
[395152559,1764485571918,-500.0,8.04e-05,2]
[395152560,1764485571950,-500.0,8.04e-05,2]
[395152561,1764485571983,-500.0,8.04e-05,2]
[395152562,1764485572016,-500.0,8.04e-05,2]
[395152563,1764485572045,-500.0,8.04e-05,2]
[395152564,1764485572078,-500.0,8.04e-05,2]
[395152565,1764485572111,-500.0,8.04e-05,2]
[395152566,1764485572143,-500.0,8.04e-05,2]
[395152567,1764485572175,-500.0,8.04e-05,2]
[395152568,1764485572443,-500.0,8.04e-05,2]
[395152569,1764485572482,-500.0,8.04e-05,2]
[395152570,1764485572513,-500.0,8.04e-05,2]
[395152571,1764485572544,-500.0,8.04e-05,2]
[395152572,1764485572575,-500.0,8.04e-05,2]
[395152573,1764485572607,-500.0,8.04e-05,2]
[395152574,1764485572639,-475.39962253,8.04e-05,2]
[395152575,1764485572673,-500.0,8.04e-05,2]
[395152576,1764485572709,-500.0,8.04e-05,2]
[395152577,1764485572746,-520.77148103,8.04e-05,2]
[395152578,1764485574954,7.66779288,8.039e-05,2]
[395152579,1764485574978,1192.33220712,8.039e-05,2]
[395152580,1764485582916,300.0,8.04e-05,2]
[395152581,1764485583556,7636.44582068,7.961e-05,2]
[395152582,1764485587089,-863.56417932,8.041e-05,2]
[395152583,1764485587302,-10000.01,8.041e-05,2]
[395152584,1764485587443,-10000.01,8.041e-05,2]
[395152585,1764485587751,-10000.01,8.041e-05,2]
[395152586,1764485587913,-10000.01,8.041e-05,2]
[395152587,1764485588028,-10000.01,8.041e-05,2]
[395152588,1764485605740,4150.99081122,7.961e-05,2]
[395152589,1764485684700,5849.01918878,7.96e-05,2]
[395152590,1764485684724,2581.43434976,7.96e-05,2]
[395152591,1764485692803,6857.0717613,7.96e-05,2]
[395152592,1764485700660,561.50388894,7.96e-05,2]
[395152593,1764485700686,4038.68798337,7.96e-05,2]
[395152594,1764485708535,1200.0,7.959e-05,2]
[395152595,1764485716716,300.0,7.959e-05,2]
[395152596,1764485732285,2400.0,7.959e-05,2]
[395152597,1764485754674,2061.32201663,7.959e-05,2]
[395152598,1764485754703,338.67798337,7.959e-05,2]
[395152599,1764485769177,-300.0,8.038e-05,2]
[395152600,1764485770966,-244.67642743,8.039e-05,2]
[395152601,1764485774056,-55.32357257,8.039e-05,2]
[395152602,1764485774102,-300.0,8.039e-05,2]
[395152603,1764485774137,-300.0,8.039e-05,2]
[395152604,1764485774174,-1200.0,8.039e-05,2]
[395152605,1764485776993,6289.36285486,7.96e-05,2]
[395152606,1764485777018,2841.09068368,7.96e-05,2]
[395152607,1764485785222,1303.52022601,7.96e-05,2]
[395152608,1764485800403,230.22350894,7.961e-05,2]
[395152609,1764485814941,282.6638121,7.239e-05,2]
[395152610,1764485823074,230.22350894,7.961e-05,2]
[395152611,1764485845957,396.82288874,7.961e-05,2]
[395152612,1764485859156,-230.22350894,8.041e-05,2]
[395152613,1764485859179,-19.79193694,8.041e-05,2]
[395152614,1764485861042,-146.80744286,8.041e-05,2]
[395152615,1764485861069,-466.13619477,8.081e-05,2]
[395152616,1764485866178,-118.4320378,8.081e-05,2]
[395152617,1764485866206,-199.30071964,8.12e-05,2]
[395152618,1764485868746,-100.69928036,8.12e-05,2]
[395152619,1764485868768,-179.17767833,8.121e-05,2]
[395152620,1764485871603,-6.85660799,8.121e-05,2]
[395152621,1764485871625,-243.14339201,8.121e-05,2]
[395152622,1764485889188,-292.71144599,8.12e-05,2]
[395152623,1764485891002,-387.49829942,8.12e-05,2]
[395152624,1764485891189,1500.0,8.039e-05,2]
[395152625,1764485892647,-167.37525811,8.12e-05,2]
[395152626,1764485896000,-351.96498144,8.12e-05,2]
[395152627,1764485898013,-0.45001504,8.12e-05,2]
[395152628,1764485898038,-187.04828438,8.12e-05,2]
[395152629,1764485900187,-112.95171562,8.12e-05,2]
[395152630,1764485900215,-289.16331997,8.121e-05,2]
[395152631,1764485900240,-30.43835053,8.121e-05,2]
[395152632,1764485902234,-397.77358761,8.121e-05,2]
[395152633,1764485908861,174.62180291,0.00012455,11]
[395152634,1764485913790,8500.01,8.04e-05,2]
[395152635,1764485913820,2415.50607475,8.04e-05,2]
[395152636,1764485936506,7584.50392525,8.04e-05,2]
[395152637,1764485936535,3331.0121495,8.04e-05,2]
[395152638,1764485958770,300.0,8.039e-05,2]
[395152639,1764485982007,300.0,8.039e-05,2]
[395152640,1764485984437,9400.01,8.045e-05,2]
[395152641,1764485984462,10000.01,8.045e-05,2]
[395152642,1764485984486,10000.01,8.045e-05,2]
[395152649,1764486144530,379.28,0.00017404,30]
[395152650,1764486144936,758.56,0.00018233,30]
[395152651,1764486145331,1137.84,0.00019062,30]
[395152652,1764486145740,1517.12,0.00019891,30]
[395152655,1764486222803,358.59,9.731e-05,30]
[395152656,1764486223182,717.18,0.00010195,30]
[395152657,1764486223585,1075.77,0.00010658,30]
[395152658,1764486223990,1434.37,0.00011122,30]
[395152659,1764486224397,1792.96,0.00011585,30]
[395152660,1764486224808,2151.55,0.00012049,30]
[395152661,1764486225217,2510.14,0.00012512,30]
[395152662,1764486225616,2868.73,0.00012975,30]
[395152663,1764486226031,3227.32,0.00013439,30]
[395152664,1764486226426,3585.90759489,0.00013902,30]
[395152666,1764486303757,251.01,9.908e-05,30]
[395152667,1764486304164,502.03,0.0001038,30]
[395152668,1764486304556,753.04,0.00010852,30]
[395152669,1764486304968,1004.06,0.00011324,30]
[395152670,1764486305420,1255.07,0.00011796,30]
[395152671,1764486305855,1506.08,0.00012268,30]
[395152672,1764486306400,1757.1,0.00012739,30]
[395152673,1764486306931,2008.11,0.00013211,30]
[395152674,1764486307341,2259.13,0.00013683,30]
[395152675,1764486307752,2510.14,0.00014155,30]
[395152676,1764486336094,-205.67755768,7.884e-05,2]
[395152677,1764486381009,175.71,9.691e-05,30]
[395152678,1764486381415,351.42,0.00010153,30]
[395152679,1764486381813,527.13,0.00010614,30]
[395152680,1764486382223,702.84,0.00011076,30]
[395152681,1764486383074,878.55,0.00011537,30]
[395152682,1764486383484,1054.26,0.00011998,30]
[395152683,1764486383895,1229.97,0.0001246,30]
[395152684,1764486384287,1405.68,0.00012921,30]
[395152685,1764486384686,1581.39,0.00013383,30]
[395152686,1764486385120,1757.08,0.00013844,30]
[395152687,1764486390478,394.32244232,7.805e-05,2]
[395152688,1764486413073,579.77836484,7.904e-05,2]
[395152689,1764486422470,186.67170624,7.603e-05,2]
[395152690,1764486429073,-579.77836484,7.983e-05,2]
[395152691,1764486429094,-300.0,8.042e-05,2]
[395152692,1764486429116,-287.32382802,8.042e-05,2]
[395152693,1764486432081,-12.67617198,8.042e-05,2]
[395152694,1764486432104,-239.8883408,8.043e-05,2]
[395152696,1764486436035,2760.1116592,7.963e-05,2]
[395152697,1764486454246,-960.1116592,8.043e-05,2]
[395152698,1764486454269,-163.44187322,8.043e-05,2]
[395152699,1764486457211,150.0,9.695e-05,30]
[395152700,1764486458903,1636.55812678,7.963e-05,2]
[395152701,1764486459210,-136.55812678,8.043e-05,2]
[395152702,1764486459234,-62.14725005,8.043e-05,2]
[395152703,1764486461779,-286.40827121,8.043e-05,2]
[395152705,1764486464497,-155.88737735,8.043e-05,2]
[395152706,1764486465476,-695.55710139,8.043e-05,2]
[395152707,1764486465511,-300.0,8.043e-05,2]
[395152708,1764486467932,-217.0,8.044e-05,2]
[395152709,1764486467959,-43.34593091,8.044e-05,2]
[395152710,1764486469256,-215.47878552,8.044e-05,2]
[395152711,1764486470019,245.99,0.00010157,30]
[395152712,1764486470444,368.99,0.00010618,30]
[395152713,1764486470860,491.99,0.0001108,30]
[395152714,1764486471275,614.98,0.00011542,30]
[395152715,1764486471328,-341.6166106,8.044e-05,2]
[395152716,1764486471689,737.98,0.00012003,30]
[395152717,1764486472095,860.98,0.00012465,30]
[395152718,1764486472498,983.97,0.00012927,30]
[395152719,1764486472817,-162.55440361,8.044e-05,2]
[395152720,1764486472921,1106.97,0.00013388,30]
[395152721,1764486473327,1202.97,0.0001385,30]
[395152722,1764486474665,1200.0,8.043e-05,2]
[395152723,1764486475588,-158.90524772,8.044e-05,2]
[395152724,1764486478951,-198.40922333,8.044e-05,2]
[395152728,1764486481166,-50.32279831,8.044e-05,2]
[395152729,1764486481693,-223.0,8.044e-05,2]
[395152730,1764486482715,300.0,8.043e-05,2]
[395152731,1764486489256,9599.36440338,8.022e-05,2]
[395152732,1764486489308,10000.01,8.022e-05,2]
[395152733,1764486489364,10000.01,8.022e-05,2]
[395152734,1764486489421,10000.01,8.022e-05,2]
[395152735,1764486489479,10000.01,8.022e-05,2]
[395152736,1764486489535,10000.01,8.022e-05,2]
[395152737,1764486489592,10000.01,8.022e-05,2]
[395152738,1764486512984,1843.8863961,7.784e-05,2]
[395152739,1764486525388,2021.7720742,7.16e-05,2]
[395152740,1764486542735,153.55,1e-05,2]
[395152741,1764486543082,153.55,1e-05,2]
[395152742,1764486543388,153.55,1.1e-05,2]
[395152743,1764486544335,153.55,1.1e-05,2]
[395152744,1764486544698,153.55,1.2e-05,2]
[395152745,1764486545202,153.55,1.2e-05,2]
[395152746,1764486545351,153.55,1.3e-05,2]
[395152747,1764486545536,150.0,9.733e-05,30]
[395152748,1764486545949,172.2,0.00010197,30]
[395152749,1764486546337,258.29,0.0001066,30]
[395152750,1764486546757,344.39,0.00011124,30]
[395152751,1764486547180,430.49,0.00011587,30]
[395152752,1764486547574,516.59,0.00012051,30]
[395152753,1764486547976,602.68,0.00012514,30]
[395152754,1764486548075,-1843.8863961,7.784e-05,2]
[395152755,1764486548111,-1843.8863961,7.863e-05,2]
[395152756,1764486548133,-1843.8863961,7.942e-05,2]
[395152757,1764486548156,-300.0,8.021e-05,2]
[395152758,1764486548183,-2317.61796025,8.022e-05,2]
[395152759,1764486548396,688.78,0.00012978,30]
[395152760,1764486549013,774.88,0.00013441,30]
[395152761,1764486549200,797.1,0.00013905,30]
[395152762,1764486550055,153.55,1.3e-05,2]
[395152763,1764486550385,153.55,1.4e-05,2]
[395152764,1764486550700,153.55,1.4e-05,2]
[395152766,1764486551036,153.55,1.5e-05,2]
[395152767,1764486551347,153.55,1.5e-05,2]
[395152768,1764486551679,153.55,1.5e-05,2]
[395152769,1764486552108,-1843.8863961,7.706e-05,2]
[395152770,1764486552134,-137649.21483545,8.022e-05,2]
[395152771,1764486552170,153.55,1.6e-05,2]
[395152772,1764486552440,153.55,1.6e-05,2]
[395152773,1764486552734,153.55,1.7e-05,2]
[395152774,1764486553228,153.55,1.7e-05,2]
[395152776,1764486553315,153.55,1.8e-05,2]
[395152777,1764486553606,153.55,1.8e-05,2]
[395152778,1764486553918,153.55,1.9e-05,2]
[395152779,1764486554899,153.55,1.9e-05,2]
[395152780,1764486555236,153.55,2e-05,2]
[395152781,1764486556336,153.55,2e-05,2]
[395152782,1764486556486,153.55,2e-05,2]
[395152783,1764486556599,153.55,2.1e-05,2]
[395152784,1764486557034,153.55,2.1e-05,2]
[395152785,1764486557296,153.55,2.2e-05,2]
[395152786,1764486557529,153.55,2.2e-05,2]
[395152787,1764486557900,153.55,2.3e-05,2]
[395152788,1764486558040,153.55,2.3e-05,2]
[395152789,1764486558325,153.55,2.4e-05,2]
[395152790,1764486558620,153.55,2.4e-05,2]
[395152791,1764486558978,153.55,2.5e-05,2]
[395152792,1764486560890,153.45,1e-05,2]
[395152793,1764486564073,-6838.21608457,7.942e-05,2]
[395152794,1764486564098,-3888.91496029,7.942e-05,2]
[395152795,1764486564118,-500.0,8.021e-05,2]
[395152796,1764486564140,-500.0,8.021e-05,2]
[395152797,1764486564163,-500.0,8.021e-05,2]
[395152798,1764486564184,-500.0,8.021e-05,2]
[395152799,1764486564208,-500.0,8.021e-05,2]
[395152800,1764486564230,-500.0,8.021e-05,2]
[395152801,1764486564253,-500.0,8.021e-05,2]
[395152802,1764486564275,-500.0,8.021e-05,2]
[395152803,1764486564297,-500.0,8.021e-05,2]
[395152804,1764486564318,-500.0,8.021e-05,2]
[395152805,1764486564342,-500.0,8.021e-05,2]
[395152806,1764486564363,-500.0,8.021e-05,2]
[395152807,1764486564385,-500.0,8.021e-05,2]
[395152808,1764486564408,-500.0,8.021e-05,2]
[395152809,1764486564427,-568.26313598,8.021e-05,2]
[395152810,1764486564447,-500.0,8.021e-05,2]
[395152811,1764486564467,-500.0,8.021e-05,2]
[395152812,1764486564492,-500.0,8.021e-05,2]
[395152813,1764486564516,-500.0,8.021e-05,2]
[395152814,1764486564536,-500.0,8.021e-05,2]
[395152815,1764486564559,-500.0,8.021e-05,2]
[395152816,1764486564581,-500.0,8.021e-05,2]
[395152817,1764486564602,-500.0,8.021e-05,2]
[395152818,1764486564625,-500.0,8.021e-05,2]
[395152819,1764486564646,-500.0,8.021e-05,2]
[395152820,1764486564667,-500.0,8.021e-05,2]
[395152821,1764486564688,-500.0,8.021e-05,2]
[395152822,1764486564709,-500.0,8.021e-05,2]
[395152823,1764486564731,-500.0,8.021e-05,2]
[395152824,1764486564752,-500.0,8.021e-05,2]
[395152825,1764486564775,-500.0,8.021e-05,2]
[395152826,1764486564797,-500.0,8.021e-05,2]
[395152827,1764486564818,-500.0,8.021e-05,2]
[395152828,1764486564838,-631.66298964,8.021e-05,2]
[395152829,1764486564858,-500.0,8.021e-05,2]
[395152830,1764486564880,-415.55500134,8.021e-05,2]
[395152831,1764486564901,-500.0,8.021e-05,2]
[395152832,1764486564923,-51.05764005,8.021e-05,2]
[395152833,1764486567092,-778.08172636,7.842e-05,2]
[395152834,1764486567116,-448.94235995,8.021e-05,2]
[395152835,1764486567140,-500.0,8.021e-05,2]
[395152836,1764486567162,-500.0,8.021e-05,2]
[395152837,1764486567183,-500.0,8.021e-05,2]
[395152838,1764486567204,-500.0,8.021e-05,2]
[395152839,1764486567225,-500.0,8.021e-05,2]
[395152840,1764486567245,-500.0,8.021e-05,2]
[395152841,1764486567269,-500.0,8.021e-05,2]
[395152842,1764486567292,-500.0,8.021e-05,2]
[395152843,1764486567314,-500.0,8.021e-05,2]
[395152844,1764486567338,-500.0,8.021e-05,2]
[395152845,1764486567359,-500.0,8.021e-05,2]
[395152846,1764486567380,-500.0,8.021e-05,2]
[395152847,1764486567402,-500.0,8.021e-05,2]
[395152848,1764486567425,-500.0,8.021e-05,2]
[395152849,1764486567445,-500.0,8.021e-05,2]
[395152850,1764486567468,-500.0,8.021e-05,2]
[395152851,1764486567493,-500.0,8.021e-05,2]
[395152852,1764486567516,-500.0,8.021e-05,2]
[395152853,1764486567539,-47.4853677,8.021e-05,2]
[395152854,1764486567566,-452.5146323,8.021e-05,2]
[395152855,1764486567587,-500.0,8.021e-05,2]
[395152856,1764486567608,-500.0,8.021e-05,2]
[395152857,1764486567629,-500.0,8.021e-05,2]
[395152858,1764486567652,-500.0,8.021e-05,2]
[395152859,1764486567673,-500.0,8.021e-05,2]
[395152860,1764486567694,-458.50563331,8.021e-05,2]
[395152861,1764486567716,-334.09948376,8.021e-05,2]
[395152862,1764486569120,-165.90051624,8.021e-05,2]
[395152863,1764486569142,-500.0,8.021e-05,2]
[395152864,1764486569163,-500.0,8.021e-05,2]
[395152865,1764486569187,-4403.75141325,8.022e-05,2]
[395152866,1764486570103,-631.17786814,8.022e-05,2]
[395152867,1764486609783,-408.71259583,7.942e-05,2]
[395152873,1764486632680,-874.63818407,7.941e-05,2]
[395152876,1764486632692,-310.21679657,7.941e-05,2]
[395152944,1764486638815,-15.14501936,7.941e-05,2]
[395152946,1764486638825,-506.22651718,7.942e-05,2]
[395152948,1764486638836,-3251.0,7.942e-05,2]
[395152962,1764486638960,-781.84131774,7.942e-05,2]
[395152964,1764486638971,-1116.45259264,7.942e-05,2]
[395152966,1764486638983,-680.82787613,7.942e-05,2]
[395153246,1764486641592,-2e-08,7.942e-05,2]
[395153444,1764486643715,-272.83182917,7.942e-05,2]
[395153471,1764486643995,-545.51441811,7.942e-05,2]
[395153473,1764486644004,-217.0,7.942e-05,2]
[395153475,1764486644013,-220.0,8.02e-05,2]
[395153477,1764486644023,-300.0,8.02e-05,2]
[395153479,1764486644032,-300.0,8.02e-05,2]
[395153481,1764486644040,-500.0,8.021e-05,2]
[395153483,1764486644051,-500.0,8.021e-05,2]
[395153485,1764486644060,-500.0,8.021e-05,2]
[395153487,1764486644069,-500.0,8.021e-05,2]
[395153489,1764486644078,-500.0,8.021e-05,2]
[395153491,1764486644087,-285.4202121,8.021e-05,2]
[395153493,1764486644096,-500.0,8.021e-05,2]
[395153495,1764486644105,-500.0,8.021e-05,2]
[395153497,1764486644113,-189.56545678,8.021e-05,2]
[395153499,1764486644125,-310.43454322,8.021e-05,2]
[395153501,1764486644134,-500.0,8.021e-05,2]
[395153503,1764486644143,-3571.10468723,8.022e-05,2]
[395153508,1764486644174,-297.21524458,8.022e-05,2]
[395153510,1764486644185,-306.713458,8.022e-05,2]
[395153706,1764486646613,-1411.95357189,8.022e-05,2]
[395153748,1764486647139,-1976.42018512,8.022e-05,2]
[395153750,1764486647149,-568.18279754,8.044e-05,2]
[395153752,1764486647159,-10747.24213085,8.045e-05,2]
[395153779,1764486661813,244.07241558,7.885e-05,2]
[395153780,1764486685184,244.07241558,7.885e-05,2]
[395153781,1764486707556,244.07241558,7.885e-05,2]
[395153782,1764486726624,335.67306216,7.701e-05,2]
[395153783,1764486730061,244.07241558,7.885e-05,2]
[395153784,1764486745021,1180.60676878,7.865e-05,2]
[395153785,1764486751938,244.07241558,7.885e-05,2]
[395153786,1764486759720,244.07241558,7.885e-05,2]
[395153787,1764486766703,150.0,9.795e-05,30]
[395153788,1764486767108,150.0,0.00010262,30]
[395153789,1764486767895,180.81,0.00010728,30]
[395153790,1764486768292,241.07,0.00011195,30]
[395153791,1764486768690,301.34,0.00011661,30]
[395153792,1764486769094,361.61,0.00012128,30]
[395153793,1764486769544,421.88,0.00012594,30]
[395153794,1764486769984,482.15,0.0001306,30]
[395153795,1764486770393,542.42,0.00013527,30]
[395153796,1764486770795,474.11,0.00013993,30]
[395153797,1764486775059,244.07241558,7.885e-05,2]
[395153798,1764486782900,244.07241558,7.885e-05,2]
[395153799,1764486797786,244.07241558,7.885e-05,2]
[395153800,1764486805575,244.07241558,7.885e-05,2]
[395153822,1764486820980,244.07241558,7.885e-05,2]
[395153824,1764486828850,244.07241558,7.885e-05,2]
[395153825,1764486837206,244.07241558,7.885e-05,2]
[395153826,1764486842184,150.0,0.00012364,30]
[395153827,1764486842590,150.0,0.00012953,30]
[395153828,1764486843120,150.0,0.00013542,30]
[395153829,1764486843540,168.96,0.0001413,30]
[395153830,1764486843954,211.19,0.00014719,30]
[395153831,1764486844348,253.43,0.00015308,30]
[395153832,1764486845047,589.4707639,7.913e-05,2]
[395153833,1764486845174,295.67,0.00015897,30]
[395153834,1764486845796,337.91,0.00016486,30]
[395153835,1764486846191,380.15,0.00017074,30]
[395153836,1764486846619,174.38,0.00017663,30]
[395153837,1764486853073,589.4707639,7.913e-05,2]
[395153838,1764486868964,589.4707639,7.913e-05,2]
[395153839,1764486876743,589.4707639,7.913e-05,2]
[395153840,1764486891959,589.4707639,7.913e-05,2]
[395153841,1764486899873,589.4707639,7.913e-05,2]
[395153842,1764486915243,589.4707639,7.913e-05,2]
[395153843,1764486919275,150.0,0.00013459,30]
[395153844,1764486919609,150.0,0.000141,30]
[395153845,1764486920038,150.0,0.00014741,30]
[395153846,1764486920498,150.0,0.00015382,30]
[395153847,1764486920844,150.0,0.00016023,30]
[395153848,1764486921248,179.09,0.00016664,30]
[395153849,1764486921710,208.94,0.00017305,30]
[395153850,1764486922122,238.78,0.00017946,30]
[395153851,1764486922526,173.75,0.00018587,30]
[395153852,1764486923031,589.4707639,7.913e-05,2]
[395153853,1764486925354,870.55331644,7.893e-05,2]
[395153854,1764486938409,589.4707639,7.913e-05,2]
[395153855,1764486946242,445.33974254,7.913e-05,2]
[395153856,1764486961700,589.4707639,7.913e-05,2]
[395153857,1764486984167,589.4707639,7.913e-05,2]
[395153858,1764486993945,150.0,0.00013243,30]
[395153859,1764486994385,150.0,0.00013874,30]
[395153860,1764486994795,150.0,0.00014505,30]
[395153861,1764486995202,150.0,0.00015135,30]
[395153862,1764486995614,150.0,0.00015766,30]
[395153863,1764486996042,150.0,0.00016397,30]
[395153864,1764487004577,189.8631296,7.106e-05,2]
[395153865,1764487006856,589.4707639,7.913e-05,2]
[395153866,1764487029163,589.4707639,7.913e-05,2]
[395153867,1764487051606,589.4707639,7.913e-05,2]
[395153868,1764487066096,150.0,0.00015891,30]
[395153869,1764487066551,150.0,0.00016648,30]
[395153870,1764487066965,150.0,0.00017404,30]
[395153871,1764487067365,150.0,0.00018161,30]
[395153872,1764487074759,589.4707639,7.913e-05,2]
[395153873,1764487096814,589.4707639,7.913e-05,2]
[395153874,1764487119775,589.4707639,7.913e-05,2]
[395153876,1764487142124,589.4707639,7.925e-05,2]
[395153877,1764487163136,310.3547728,7.019e-05,2]
[395153878,1764487165401,589.4707639,7.925e-05,2]
[395153881,1764487188105,589.4707639,7.925e-05,2]
[395153882,1764487204215,150.0,0.00018756,30]
[395153883,1764487204615,150.0,0.00019649,30]
[395153884,1764487210379,217.0,7.925e-05,2]
[395153886,1764487232883,217.0,7.925e-05,2]
[395153887,1764487255379,217.0,7.925e-05,2]
[395153888,1764487274673,150.0,0.00018085,30]
[395153889,1764487277857,217.0,7.925e-05,2]
[395153890,1764487298848,-217.0,8.005e-05,2]
[395153891,1764487298871,-317.08107234,8.005e-05,2]
[395153892,1764487300700,217.0,7.925e-05,2]
[395153893,1764487323648,272.38969156,7.925e-05,2]
[395153894,1764487330545,313.33087351,7.959e-05,2]
[395153895,1764487345928,272.38969156,7.925e-05,2]
[395153896,1764487346113,150.0,9.911e-05,30]
[395153897,1764487354694,5978.13267887,7.017e-05,2]
[395153898,1764487354749,10000.01,7.017e-05,2]
[395153902,1764487405649,-505.0,6.878e-05,2]
[395153903,1764487407669,-505.0,6.878e-05,2]
[395153904,1764487494427,-300.0,6.878e-05,2]
[395153905,1764487509409,-216.68666995,6.878e-05,2]
[395153906,1764487512309,-231.28369723,6.878e-05,2]
[395153907,1764487514404,-211.72877927,6.878e-05,2]
[395153908,1764487516241,-392.22369311,6.878e-05,2]
[395153909,1764487519317,-318.13235162,6.878e-05,2]
[395153910,1764487522383,-428.76861776,6.878e-05,2]
[395153911,1764487525252,-470.02203301,6.878e-05,2]
[395153912,1764487527201,-500.0,6.878e-05,2]
[395153913,1764487529378,-261.86539424,6.878e-05,2]
[395153914,1764487535755,-302.0,6.878e-05,2]
[395153915,1764487537338,-289.23874662,6.878e-05,2]
[395153917,1764487543524,-302.0,6.878e-05,2]
[395153918,1764487547361,-206.85345083,6.878e-05,2]
[395153919,1764487549970,-298.0,6.878e-05,2]
[395153920,1764487551609,-574.3275421,6.878e-05,2]
[395153922,1764487554855,-31.38937477,6.878e-05,2]
[395153923,1764487554878,-246.98512091,6.912e-05,2]
[395153924,1764487558137,-174.11666343,6.912e-05,2]
[395153925,1764487558270,-162.02735811,6.912e-05,2]
[395153926,1764487558294,-167.57503798,6.945e-05,2]
[395153927,1764487560567,336.14402154,6.843e-05,2]
[395153928,1764487561407,-132.42496202,6.945e-05,2]
[395153929,1764487561431,-46.85625359,6.945e-05,2]
[395153930,1764487563689,-248.05679264,6.945e-05,2]
[395153931,1764487566374,-5.08695377,6.945e-05,2]
[395153932,1764487566399,-294.91304623,6.945e-05,2]
[395153934,1764487567961,-541.65465782,6.945e-05,2]
[395153935,1764487570619,-222.09128577,6.876e-05,2]
[395153936,1764487574529,-25.96550687,6.876e-05,2]
[395153937,1764487574553,-344.35726353,6.945e-05,2]
[395153938,1764487577121,-19.07503242,6.945e-05,2]
[395153939,1764487577145,-300.0,6.945e-05,2]
[395153940,1764487577168,-313.3545522,6.946e-05,2]
[395153942,1764487586156,-201.35123741,6.877e-05,2]
[395153943,1764487589792,-217.0488388,6.877e-05,2]
[395153944,1764487591328,-209.28303073,6.877e-05,2]
[395153945,1764487593870,423.44252318,6.808e-05,2]
[395153946,1764487615147,-500.0,6.876e-05,2]
[395153947,1764487615168,-141.85690632,6.876e-05,2]
[395153948,1764487627072,-180.63188776,6.875e-05,2]
[395153949,1764487629092,-119.36811224,6.875e-05,2]
[395153950,1764487629113,-358.14309368,6.876e-05,2]
[395153951,1764487629134,-254.36981389,6.876e-05,2]
[395153952,1764487629154,-158.33629949,6.876e-05,2]
[395153953,1764487629173,-284.69157397,6.876e-05,2]
[395153954,1764487630087,-215.30842603,6.876e-05,2]
[395153955,1764487630111,-46.7275279,6.876e-05,2]
[395154022,1764487730165,174.62180291,0.00012317,10]
[395154071,1764487749077,-300.0,6.874e-05,2]
[395154072,1764487749097,-1200.0,6.875e-05,2]
[395154073,1764487749116,-500.0,6.875e-05,2]
[395154074,1764487749137,-500.0,6.875e-05,2]
[395154075,1764487749159,-500.0,6.875e-05,2]
[395154076,1764487749181,-500.0,6.875e-05,2]
[395154077,1764487749204,-500.0,6.875e-05,2]
[395154078,1764487749226,-500.0,6.875e-05,2]
[395154079,1764487749244,-500.0,6.875e-05,2]